[Event "Titled Tuesday Blitz August 22 Early 2023"]
[White "Kekic, Armin"]
[Black "ArmanGhevondyanchess"]
[WhiteFideId "14401274"]
[WhiteElo "2365"]
[BlackElo "2096"]
[Result "1-0"]
[Round "3"]
[TimeControl "180+1"]
[Date "2023.08.22"]
[WhiteClock "0:00:08"]
[BlackClock "0:00:20"]
[Board "258"]

1. e4 {[%clk 0:03:00]}  c5 {[%clk 0:02:59]} 2. Nf3 {[%clk 0:03:00]}  Nc6 {[%clk 0:02:59]} 3. d4 {[%clk 0:03:00]}  cxd4 {[%clk 0:03:00]} 4. Nxd4 {[%clk 0:03:01]}  g6 {[%clk 0:03:01]} 5. Nc3 {[%clk 0:03:01]}  Bg7 {[%clk 0:03:02]} 6. Be3 {[%clk 0:03:01]}  Nf6 {[%clk 0:03:02]} 7. f3 {[%clk 0:03:01]}  O-O {[%clk 0:03:03]} 8. Qd2 {[%clk 0:03:01]}  d5 {[%clk 0:03:04]} 9. exd5 {[%clk 0:02:55]}  Nxd5 {[%clk 0:03:04]} 10. Nxc6 {[%clk 0:02:55]}  bxc6 {[%clk 0:03:04]} 11. Bd4 {[%clk 0:02:55]}  Bxd4 {[%clk 0:02:58]} 12. Qxd4 {[%clk 0:02:55]}  e5 {[%clk 0:02:59]} 13. Qd2 {[%clk 0:02:50]}  Rb8 {[%clk 0:02:57]} 14. O-O-O {[%clk 0:02:32]}  Qb6 {[%clk 0:02:54]} 15. b3 {[%clk 0:02:31]}  Rd8 {[%clk 0:02:51]} 16. Nxd5 {[%clk 0:02:27]}  cxd5 {[%clk 0:02:48]} 17. Qc3 {[%clk 0:02:19]}  Bf5 {[%clk 0:02:42]} 18. Bd3 {[%clk 0:02:13]}  Rbc8 {[%clk 0:02:31]} 19. Qxe5 {[%clk 0:01:46]}  Be4 {[%clk 0:02:22]} 20. fxe4 {[%clk 0:01:41]}  d4 {[%clk 0:02:11]} 21. Rhf1 {[%clk 0:01:32]}  Qb4 {[%clk 0:02:09]} 22. Bc4 {[%clk 0:01:11]}  Rxc4 {[%clk 0:02:04]} 23. bxc4 {[%clk 0:01:11]}  Qa3+ {[%clk 0:02:04]} 24. Kb1 {[%clk 0:00:54]}  Qb4+ {[%clk 0:02:02]} 25. Ka1 {[%clk 0:00:51]}  Qc3+ {[%clk 0:01:56]} 26. Kb1 {[%clk 0:00:51]}  Qxc4 {[%clk 0:01:27]} 27. Rd3 {[%clk 0:00:36]}  Rc8 {[%clk 0:01:24]} 28. Rc1 {[%clk 0:00:30]}  Rd8 {[%clk 0:01:16]} 29. Rb3 {[%clk 0:00:27]}  Qc8 {[%clk 0:01:09]} 30. Rd1 {[%clk 0:00:24]}  Qc4 {[%clk 0:01:02]} 31. Rb8 {[%clk 0:00:22]}  Rf8 {[%clk 0:00:57]} 32. Rxf8+ {[%clk 0:00:21]}  Kxf8 {[%clk 0:00:58]} 33. Qxd4 {[%clk 0:00:22]}  Qb5+ {[%clk 0:00:58]} 34. Qb2 {[%clk 0:00:22]}  Qe2 {[%clk 0:00:59]} 35. Rd8+ {[%clk 0:00:22]}  Ke7 {[%clk 0:00:59]} 36. Rd4 {[%clk 0:00:18]}  a5 {[%clk 0:00:56]} 37. Qb7+ {[%clk 0:00:17]}  Kf8 {[%clk 0:00:55]} 38. Qb8+ {[%clk 0:00:17]}  Kg7 {[%clk 0:00:53]} 39. Qe5+ {[%clk 0:00:17]}  Kh6 {[%clk 0:00:54]} 40. Qf4+ {[%clk 0:00:17]}  Kg7 {[%clk 0:00:55]} 41. Qc1 {[%clk 0:00:16]}  a4 {[%clk 0:00:47]} 42. a3 {[%clk 0:00:15]}  h5 {[%clk 0:00:40]} 43. Rxa4 {[%clk 0:00:14]}  Qxg2 {[%clk 0:00:39]} 44. Rb4 {[%clk 0:00:12]}  h4 {[%clk 0:00:37]} 45. Qf4 {[%clk 0:00:10]}  h3 {[%clk 0:00:32]} 46. Kb2 {[%clk 0:00:08]}  Qg1 {[%clk 0:00:28]} 47. Qe5+ {[%clk 0:00:07]}  Kh6 {[%clk 0:00:25]} 48. Qh8+ {[%clk 0:00:08]}  Kg5 {[%clk 0:00:24]} 49. Qxh3 {[%clk 0:00:08]}  Qa7 {[%clk 0:00:22]} 50. Qc3 {[%clk 0:00:08]}  f5 {[%clk 0:00:21]} 51. exf5 {[%clk 0:00:08]}  gxf5 {[%clk 0:00:22]} 52. Qg3+ {[%clk 0:00:08]}  Kf6 {[%clk 0:00:20]} 53. Qc3+ {[%clk 0:00:06]}  Kg5 {[%clk 0:00:20]} 54. a4 {[%clk 0:00:07]}  f4 {[%clk 0:00:19]} 55. Rb5+ {[%clk 0:00:07]}  Kg4 {[%clk 0:00:20]} 56. h3+ {[%clk 0:00:08]}  Kh4 {[%clk 0:00:20]} 57. Qe1+ {[%clk 0:00:08]}  Kxh3 {[%clk 0:00:20]} 58. Rh5+ {[%clk 0:00:08]}  Kg4 {[%clk 0:00:20]} 59. Qh4+ {[%clk 0:00:08]}  Kf3 {[%clk 0:00:21]} 60. Qh3+ {[%clk 0:00:08]}  Ke4 {[%clk 0:00:21]} 61. Qf5+ {[%clk 0:00:08]}  Kf3 {[%clk 0:00:22]} 62. Rh3+ {[%clk 0:00:08]}  Ke2 {[%clk 0:00:22]} 63. Qe4+ {[%clk 0:00:08]}  Kd1 {[%clk 0:00:19]} 64. Rh1+ {[%clk 0:00:07]}  Kd2 {[%clk 0:00:20]} 65. Qd3# {[%clk 0:00:08]} 1-0


[Site "https://www.chess.com"]

[Event "Titled Tuesday Blitz August 22 Early 2023"]
[White "Petrova, Irina"]
[Black "Gyulamiryan-koryun"]
[WhiteFideId "14124122"]
[WhiteElo "2360"]
[BlackElo "2032"]
[Result "1/2-1/2"]
[Round "3"]
[TimeControl "180+1"]
[Date "2023.08.22"]
[WhiteClock "0:00:11"]
[BlackClock "0:00:04"]
[Board "262"]

1. e4 {[%clk 0:03:00]}  c6 {[%clk 0:02:56]} 2. d4 {[%clk 0:03:00]}  d5 {[%clk 0:02:56]} 3. Nc3 {[%clk 0:03:01]}  dxe4 {[%clk 0:02:56]} 4. Nxe4 {[%clk 0:03:01]}  Nf6 {[%clk 0:02:57]} 5. Nxf6+ {[%clk 0:03:01]}  exf6 {[%clk 0:02:57]} 6. Be3 {[%clk 0:03:02]}  Bd6 {[%clk 0:02:55]} 7. Bd3 {[%clk 0:03:02]}  O-O {[%clk 0:02:54]} 8. Ne2 {[%clk 0:03:03]}  Nd7 {[%clk 0:02:51]} 9. O-O {[%clk 0:03:03]}  Re8 {[%clk 0:02:48]} 10. Qd2 {[%clk 0:03:02]}  Nf8 {[%clk 0:02:48]} 11. Bf4 {[%clk 0:02:59]}  Ng6 {[%clk 0:02:47]} 12. Bxd6 {[%clk 0:02:57]}  Qxd6 {[%clk 0:02:48]} 13. Rfe1 {[%clk 0:02:57]}  Be6 {[%clk 0:02:45]} 14. Rad1 {[%clk 0:02:54]}  Rad8 {[%clk 0:02:44]} 15. c3 {[%clk 0:02:53]}  Bd5 {[%clk 0:02:42]} 16. Bb1 {[%clk 0:02:51]}  Nh4 {[%clk 0:02:36]} 17. Nf4 {[%clk 0:02:47]}  Ng6 {[%clk 0:02:07]} 18. Bxg6 {[%clk 0:02:24]}  hxg6 {[%clk 0:02:05]} 19. b3 {[%clk 0:02:20]}  Be4 {[%clk 0:02:03]} 20. Ne2 {[%clk 0:02:14]}  b5 {[%clk 0:01:57]} 21. Ng3 {[%clk 0:02:13]}  Bd5 {[%clk 0:01:55]} 22. h4 {[%clk 0:02:01]}  a5 {[%clk 0:01:38]} 23. h5 {[%clk 0:02:00]}  a4 {[%clk 0:01:37]} 24. hxg6 {[%clk 0:01:58]}  fxg6 {[%clk 0:01:38]} 25. Qc2 {[%clk 0:01:56]}  axb3 {[%clk 0:01:26]} 26. axb3 {[%clk 0:01:57]}  Bf7 {[%clk 0:01:23]} 27. Ne4 {[%clk 0:01:56]}  Qd5 {[%clk 0:01:23]} 28. Nc5 {[%clk 0:01:55]}  g5 {[%clk 0:01:16]} 29. Rxe8+ {[%clk 0:01:40]}  Rxe8 {[%clk 0:01:17]} 30. Qd2 {[%clk 0:01:35]}  g4 {[%clk 0:01:08]} 31. Re1 {[%clk 0:01:34]}  Rxe1+ {[%clk 0:00:44]} 32. Qxe1 {[%clk 0:01:35]}  Qg5 {[%clk 0:00:45]} 33. Qe3 {[%clk 0:01:21]}  Qf5 {[%clk 0:00:40]} 34. b4 {[%clk 0:01:03]}  Bd5 {[%clk 0:00:35]} 35. Qe8+ {[%clk 0:00:56]}  Kh7 {[%clk 0:00:35]} 36. Nd7 {[%clk 0:00:56]}  Qb1+ {[%clk 0:00:17]} 37. Kh2 {[%clk 0:00:55]}  Qf5 {[%clk 0:00:15]} 38. Nf8+ {[%clk 0:00:54]}  Kh6 {[%clk 0:00:08]} 39. Qe3+ {[%clk 0:00:54]}  g5 {[%clk 0:00:07]} 40. Kg1 {[%clk 0:00:30]}  Qb1+ {[%clk 0:00:07]} 41. Kh2 {[%clk 0:00:30]}  Qf5 {[%clk 0:00:08]} 42. Qe1 {[%clk 0:00:23]}  Qf4+ {[%clk 0:00:07]} 43. Kg1 {[%clk 0:00:21]}  Qf5 {[%clk 0:00:07]} 44. Qe7 {[%clk 0:00:15]}  Qb1+ {[%clk 0:00:06]} 45. Kh2 {[%clk 0:00:15]}  Qf5 {[%clk 0:00:05]} 46. Nd7 {[%clk 0:00:12]}  Qf4+ {[%clk 0:00:04]} 47. Kg1 {[%clk 0:00:12]}  Qc1+ {[%clk 0:00:05]} 48. Kh2 {[%clk 0:00:12]}  Qf4+ {[%clk 0:00:05]} 49. Kg1 {[%clk 0:00:11]}  Qc1+ {[%clk 0:00:03]} 50. Kh2 {[%clk 0:00:11]}  Qf4+ {[%clk 0:00:04]} 1/2-1/2


[Site "https://www.chess.com"]

[Event "Titled Tuesday Blitz August 22 Early 2023"]
[White "Vachier-Lagrave, Maxime"]
[Black "Chigaev, Maksim"]
[WhiteFideId "623539"]
[BlackFideId "4108116"]
[WhiteElo "3140"]
[BlackElo "2914"]
[Result "1/2-1/2"]
[Round "4"]
[TimeControl "180+1"]
[Date "2023.08.22"]
[WhiteClock "0:00:02"]
[BlackClock "0:00:08"]
[Board "1"]

1. Nf3 {[%clk 0:03:00]}  Nf6 {[%clk 0:02:59]} 2. g3 {[%clk 0:02:55]}  g6 {[%clk 0:03:00]} 3. c4 {[%clk 0:02:53]}  Bg7 {[%clk 0:03:00]} 4. Bg2 {[%clk 0:02:53]}  O-O {[%clk 0:03:00]} 5. O-O {[%clk 0:02:54]}  d6 {[%clk 0:02:59]} 6. d4 {[%clk 0:02:53]}  c5 {[%clk 0:02:57]} 7. Nc3 {[%clk 0:02:51]}  Nc6 {[%clk 0:02:57]} 8. d5 {[%clk 0:02:51]}  Na5 {[%clk 0:02:57]} 9. Nd2 {[%clk 0:02:51]}  a6 {[%clk 0:02:58]} 10. a4 {[%clk 0:02:50]}  e6 {[%clk 0:02:56]} 11. Qc2 {[%clk 0:02:37]}  exd5 {[%clk 0:02:53]} 12. cxd5 {[%clk 0:02:37]}  Re8 {[%clk 0:02:50]} 13. b3 {[%clk 0:02:26]}  Bf5 {[%clk 0:02:14]} 14. e4 {[%clk 0:02:25]}  Bd7 {[%clk 0:02:14]} 15. Nc4 {[%clk 0:01:54]}  Nxc4 {[%clk 0:02:01]} 16. bxc4 {[%clk 0:01:55]}  Ng4 {[%clk 0:02:02]} 17. Bb2 {[%clk 0:01:50]}  Rb8 {[%clk 0:01:29]} 18. Nd1 {[%clk 0:01:21]}  Bxb2 {[%clk 0:01:17]} 19. Nxb2 {[%clk 0:01:22]}  b5 {[%clk 0:01:18]} 20. cxb5 {[%clk 0:01:14]}  axb5 {[%clk 0:01:19]} 21. h3 {[%clk 0:01:11]}  Nf6 {[%clk 0:01:16]} 22. axb5 {[%clk 0:01:08]}  Bxb5 {[%clk 0:01:16]} 23. Rfe1 {[%clk 0:01:07]}  Nd7 {[%clk 0:01:14]} 24. Qc3 {[%clk 0:01:01]}  Qf6 {[%clk 0:01:09]} 25. Qxf6 {[%clk 0:01:01]}  Nxf6 {[%clk 0:01:10]} 26. f4 {[%clk 0:00:57]}  Nd7 {[%clk 0:01:06]} 27. Nd1 {[%clk 0:00:55]}  f5 {[%clk 0:00:32]} 28. Nc3 {[%clk 0:00:49]}  Bd3 {[%clk 0:00:32]} 29. Ra7 {[%clk 0:00:45]}  Rbd8 {[%clk 0:00:32]} 30. Kf2 {[%clk 0:00:37]}  fxe4 {[%clk 0:00:28]} 31. Bxe4 {[%clk 0:00:38]}  Bc4 {[%clk 0:00:16]} 32. Rb1 {[%clk 0:00:22]}  Nf6 {[%clk 0:00:12]} 33. Bf3 {[%clk 0:00:20]}  Rb8 {[%clk 0:00:10]} 34. Rbb7 {[%clk 0:00:12]}  Rxb7 {[%clk 0:00:10]} 35. Rxb7 {[%clk 0:00:13]}  Ra8 {[%clk 0:00:11]} 36. Rb6 {[%clk 0:00:12]}  Ne8 {[%clk 0:00:05]} 37. Rb1 {[%clk 0:00:08]}  Kf7 {[%clk 0:00:04]} 38. Rc1 {[%clk 0:00:08]}  Ke7 {[%clk 0:00:04]} 39. g4 {[%clk 0:00:09]}  Ra3 {[%clk 0:00:04]} 40. g5 {[%clk 0:00:09]}  Bd3 {[%clk 0:00:04]} 41. h4 {[%clk 0:00:09]}  Kd8 {[%clk 0:00:03]} 42. h5 {[%clk 0:00:10]}  gxh5 {[%clk 0:00:03]} 43. Bxh5 {[%clk 0:00:10]}  Ng7 {[%clk 0:00:04]} 44. Bg4 {[%clk 0:00:10]}  Nf5 {[%clk 0:00:04]} 45. Bxf5 {[%clk 0:00:05]}  Bxf5 {[%clk 0:00:04]} 46. Nb5 {[%clk 0:00:04]}  Ra2+ {[%clk 0:00:04]} 47. Ke3 {[%clk 0:00:04]}  Ra6 {[%clk 0:00:05]} 48. Rh1 {[%clk 0:00:04]}  Rb6 {[%clk 0:00:05]} 49. Nc3 {[%clk 0:00:03]}  Rb3 {[%clk 0:00:06]} 50. Kd2 {[%clk 0:00:03]}  Rb2+ {[%clk 0:00:07]} 51. Ke3 {[%clk 0:00:03]}  Rb3 {[%clk 0:00:07]} 52. Kd2 {[%clk 0:00:03]}  Rb2+ {[%clk 0:00:08]} 53. Ke3 {[%clk 0:00:02]}  Rb3 {[%clk 0:00:08]} 1/2-1/2


[Site "https://www.chess.com"]

[Event "Titled Tuesday Blitz August 22 Early 2023"]
[White "So, Wesley"]
[Black "Tahbaz, Arash"]
[WhiteFideId "5202213"]
[BlackFideId "12528846"]
[WhiteElo "3113"]
[BlackElo "2903"]
[Result "1/2-1/2"]
[Round "4"]
[TimeControl "180+1"]
[Date "2023.08.22"]
[WhiteClock "0:00:15"]
[BlackClock "0:00:07"]
[Board "3"]

1. d4 {[%clk 0:03:00]}  d5 {[%clk 0:02:59]} 2. c4 {[%clk 0:02:56]}  e6 {[%clk 0:02:59]} 3. Nc3 {[%clk 0:02:56]}  Nf6 {[%clk 0:02:58]} 4. cxd5 {[%clk 0:02:56]}  exd5 {[%clk 0:02:59]} 5. Bg5 {[%clk 0:02:56]}  c6 {[%clk 0:03:00]} 6. e3 {[%clk 0:02:57]}  h6 {[%clk 0:03:00]} 7. Bh4 {[%clk 0:02:56]}  Be7 {[%clk 0:03:01]} 8. Bd3 {[%clk 0:02:54]}  O-O {[%clk 0:03:01]} 9. h3 {[%clk 0:02:47]}  Ne8 {[%clk 0:02:37]} 10. Bg3 {[%clk 0:02:42]}  Nd6 {[%clk 0:02:37]} 11. Nge2 {[%clk 0:02:29]}  Re8 {[%clk 0:02:37]} 12. O-O {[%clk 0:02:28]}  Bf8 {[%clk 0:02:37]} 13. Qd2 {[%clk 0:02:18]}  Bf5 {[%clk 0:02:08]} 14. f3 {[%clk 0:01:57]}  Nd7 {[%clk 0:01:38]} 15. Rae1 {[%clk 0:01:47]}  Bxd3 {[%clk 0:01:34]} 16. Qxd3 {[%clk 0:01:48]}  b5 {[%clk 0:01:27]} 17. e4 {[%clk 0:01:37]}  b4 {[%clk 0:01:20]} 18. Bxd6 {[%clk 0:01:34]}  Bxd6 {[%clk 0:01:10]} 19. Na4 {[%clk 0:01:29]}  Nb6 {[%clk 0:01:04]} 20. Nxb6 {[%clk 0:01:24]}  axb6 {[%clk 0:01:05]} 21. exd5 {[%clk 0:01:13]}  cxd5 {[%clk 0:01:05]} 22. Qb3 {[%clk 0:01:10]}  Qg5 {[%clk 0:01:05]} 23. f4 {[%clk 0:01:04]}  Bxf4 {[%clk 0:00:45]} 24. Nxf4 {[%clk 0:01:05]}  Rxe1 {[%clk 0:00:45]} 25. Rxe1 {[%clk 0:01:05]}  Qxf4 {[%clk 0:00:45]} 26. Qxd5 {[%clk 0:01:04]}  Rc8 {[%clk 0:00:46]} 27. Qd7 {[%clk 0:00:38]}  Rc2 {[%clk 0:00:23]} 28. Rf1 {[%clk 0:00:30]}  Rc1 {[%clk 0:00:19]} 29. Rxc1 {[%clk 0:00:24]}  Qxc1+ {[%clk 0:00:20]} 30. Kh2 {[%clk 0:00:24]}  Qf4+ {[%clk 0:00:20]} 31. Kh1 {[%clk 0:00:24]}  Qc1+ {[%clk 0:00:17]} 32. Kh2 {[%clk 0:00:24]}  Qxb2 {[%clk 0:00:09]} 33. Qc8+ {[%clk 0:00:21]}  Kh7 {[%clk 0:00:09]} 34. Qf5+ {[%clk 0:00:21]}  Kg8 {[%clk 0:00:09]} 35. d5 {[%clk 0:00:20]}  Qd4 {[%clk 0:00:07]} 36. Qc8+ {[%clk 0:00:18]}  Kh7 {[%clk 0:00:07]} 37. Qf5+ {[%clk 0:00:19]}  Kg8 {[%clk 0:00:07]} 38. Qc8+ {[%clk 0:00:14]}  Kh7 {[%clk 0:00:08]} 39. Qf5+ {[%clk 0:00:15]}  Kg8 {[%clk 0:00:07]} 1/2-1/2


[Site "https://www.chess.com"]

[Event "Titled Tuesday Blitz August 22 Early 2023"]
[White "Paravyan, David"]
[Black "Paichadze, Luka"]
[WhiteFideId "4194985"]
[BlackFideId "13602934"]
[WhiteElo "2970"]
[BlackElo "2831"]
[Result "1-0"]
[Round "4"]
[TimeControl "180+1"]
[Date "2023.08.22"]
[WhiteClock "0:00:16"]
[BlackClock "0:00:00"]
[Board "16"]

1. Nf3 {[%clk 0:02:26]}  Nf6 {[%clk 0:02:59]} 2. c4 {[%clk 0:02:24]}  e6 {[%clk 0:02:59]} 3. Nc3 {[%clk 0:02:24]}  Bb4 {[%clk 0:02:58]} 4. g4 {[%clk 0:02:23]}  d6 {[%clk 0:02:51]} 5. g5 {[%clk 0:02:18]}  Nfd7 {[%clk 0:02:51]} 6. h4 {[%clk 0:02:16]}  Nc6 {[%clk 0:02:48]} 7. Na4 {[%clk 0:02:15]}  a5 {[%clk 0:02:35]} 8. a3 {[%clk 0:02:06]}  Bc5 {[%clk 0:02:35]} 9. d4 {[%clk 0:02:05]}  Ba7 {[%clk 0:02:35]} 10. Be3 {[%clk 0:01:58]}  e5 {[%clk 0:02:19]} 11. d5 {[%clk 0:01:57]}  Ne7 {[%clk 0:02:19]} 12. Bxa7 {[%clk 0:01:57]}  Rxa7 {[%clk 0:02:20]} 13. Bh3 {[%clk 0:01:57]}  b6 {[%clk 0:02:18]} 14. Nc3 {[%clk 0:01:55]}  Ba6 {[%clk 0:01:53]} 15. Nd2 {[%clk 0:01:55]}  O-O {[%clk 0:01:48]} 16. h5 {[%clk 0:01:53]}  f5 {[%clk 0:01:48]} 17. gxf6 {[%clk 0:01:51]}  Nxf6 {[%clk 0:01:48]} 18. Be6+ {[%clk 0:01:50]}  Kh8 {[%clk 0:01:47]} 19. h6 {[%clk 0:01:51]}  g6 {[%clk 0:01:45]} 20. Qc2 {[%clk 0:01:50]}  Bc8 {[%clk 0:01:39]} 21. Nde4 {[%clk 0:01:45]}  Nxe4 {[%clk 0:01:32]} 22. Nxe4 {[%clk 0:01:46]}  Bxe6 {[%clk 0:01:30]} 23. dxe6 {[%clk 0:01:47]}  Nf5 {[%clk 0:01:29]} 24. e3 {[%clk 0:01:20]}  Qe7 {[%clk 0:01:26]} 25. O-O-O {[%clk 0:01:20]}  Qxe6 {[%clk 0:01:26]} 26. Kb1 {[%clk 0:01:20]}  Raa8 {[%clk 0:01:23]} 27. Qd3 {[%clk 0:01:18]}  Rae8 {[%clk 0:01:22]} 28. Nc3 {[%clk 0:01:16]}  Rf7 {[%clk 0:01:19]} 29. Nd5 {[%clk 0:01:16]}  Ref8 {[%clk 0:01:17]} 30. f4 {[%clk 0:01:14]}  c6 {[%clk 0:00:48]} 31. Nxb6 {[%clk 0:01:13]}  Rb7 {[%clk 0:00:48]} 32. c5 {[%clk 0:01:08]}  d5 {[%clk 0:00:30]} 33. Qc3 {[%clk 0:01:07]}  Kg8 {[%clk 0:00:25]} 34. fxe5 {[%clk 0:01:06]}  Re8 {[%clk 0:00:21]} 35. e4 {[%clk 0:00:43]}  dxe4 {[%clk 0:00:22]} 36. Nc4 {[%clk 0:00:44]}  Reb8 {[%clk 0:00:20]} 37. Nb6 {[%clk 0:00:27]}  e3 {[%clk 0:00:15]} 38. Rhe1 {[%clk 0:00:25]}  Re7 {[%clk 0:00:12]} 39. Rd6 {[%clk 0:00:23]}  Nxd6 {[%clk 0:00:05]} 40. exd6 {[%clk 0:00:24]}  Rf7 {[%clk 0:00:05]} 41. d7 {[%clk 0:00:14]}  g5 {[%clk 0:00:03]} 42. Qd3 {[%clk 0:00:14]}  Rd8 {[%clk 0:00:01]} 43. Rxe3 {[%clk 0:00:14]}  Qg6 {[%clk 0:00:01]} 44. Re8+ {[%clk 0:00:14]}  Rf8 {[%clk 0:00:01]} 45. Qxg6+ {[%clk 0:00:14]}  hxg6 {[%clk 0:00:02]} 46. Re7 {[%clk 0:00:14]}  Rf7 {[%clk 0:00:02]} 47. Re8+ {[%clk 0:00:15]}  Rf8 {[%clk 0:00:02]} 48. Re6 {[%clk 0:00:15]}  Kf7 {[%clk 0:00:01]} 49. Rxc6 {[%clk 0:00:16]}  Ke7 {[%clk 0:00:00]} 50. Rxg6 {[%clk 0:00:16]} 1-0


[Site "https://www.chess.com"]

[Event "Titled Tuesday Blitz August 22 Early 2023"]
[White "Tari, Aryan"]
[Black "Klukin, Kirill"]
[WhiteFideId "1510045"]
[BlackFideId "24199273"]
[WhiteElo "2960"]
[BlackElo "2821"]
[Result "0-1"]
[Round "4"]
[TimeControl "180+1"]
[Date "2023.08.22"]
[WhiteClock "0:00:00"]
[BlackClock "0:00:24"]
[Board "17"]

1. e4 {[%clk 0:02:55]}  c5 {[%clk 0:03:00]} 2. Nf3 {[%clk 0:02:52]}  g6 {[%clk 0:02:58]} 3. c4 {[%clk 0:02:49]}  Bg7 {[%clk 0:02:58]} 4. d4 {[%clk 0:02:49]}  cxd4 {[%clk 0:02:58]} 5. Nxd4 {[%clk 0:02:50]}  Nc6 {[%clk 0:02:59]} 6. Be3 {[%clk 0:02:50]}  Nf6 {[%clk 0:02:58]} 7. Nc3 {[%clk 0:02:50]}  d6 {[%clk 0:02:58]} 8. Be2 {[%clk 0:02:48]}  O-O {[%clk 0:02:58]} 9. O-O {[%clk 0:02:48]}  Bd7 {[%clk 0:02:59]} 10. Nc2 {[%clk 0:02:48]}  Rc8 {[%clk 0:02:57]} 11. Rc1 {[%clk 0:02:47]}  a6 {[%clk 0:02:57]} 12. f4 {[%clk 0:02:36]}  Na5 {[%clk 0:02:39]} 13. Na3 {[%clk 0:02:32]}  b5 {[%clk 0:02:04]} 14. cxb5 {[%clk 0:02:32]}  axb5 {[%clk 0:02:04]} 15. Naxb5 {[%clk 0:02:24]}  Nc4 {[%clk 0:02:04]} 16. Bxc4 {[%clk 0:02:20]}  Rxc4 {[%clk 0:02:04]} 17. b3 {[%clk 0:01:44]}  Rb4 {[%clk 0:01:33]} 18. Qd3 {[%clk 0:01:16]}  Nxe4 {[%clk 0:01:22]} 19. Nd4 {[%clk 0:01:16]}  Nf6 {[%clk 0:01:02]} 20. h3 {[%clk 0:01:13]}  Qa8 {[%clk 0:01:01]} 21. a4 {[%clk 0:01:10]}  e5 {[%clk 0:00:51]} 22. fxe5 {[%clk 0:01:10]}  dxe5 {[%clk 0:00:52]} 23. Ndb5 {[%clk 0:01:09]}  Rxb3 {[%clk 0:00:48]} 24. Bg5 {[%clk 0:00:43]}  Qxa4 {[%clk 0:00:33]} 25. Bxf6 {[%clk 0:00:24]}  Bxb5 {[%clk 0:00:22]} 26. Qd6 {[%clk 0:00:06]}  Qd4+ {[%clk 0:00:20]} 27. Qxd4 {[%clk 0:00:04]}  exd4 {[%clk 0:00:21]} 28. Nxb5 {[%clk 0:00:04]}  Rxb5 {[%clk 0:00:21]} 29. Bxg7 {[%clk 0:00:01]}  Kxg7 {[%clk 0:00:22]} 30. Rc7 {[%clk 0:00:01]}  Rd5 {[%clk 0:00:23]} 31. Rd1 {[%clk 0:00:01]}  d3 {[%clk 0:00:23]} 32. Rb7 {[%clk 0:00:01]}  Rfd8 {[%clk 0:00:23]} 33. Kf2 {[%clk 0:00:00]}  h5 {[%clk 0:00:24]} 0-1


[Site "https://www.chess.com"]

[Event "Titled Tuesday Blitz August 22 Early 2023"]
[White "Kramnik, Vladimir"]
[Black "Preotu, Razvan"]
[WhiteFideId "4101588"]
[BlackFideId "2613280"]
[WhiteElo "2933"]
[BlackElo "2715"]
[Result "1-0"]
[Round "4"]
[TimeControl "180+1"]
[Date "2023.08.22"]
[WhiteClock "0:00:06"]
[BlackClock "0:00:01"]
[Board "18"]

1. e4 {[%clk 0:03:00]}  c5 {[%clk 0:02:59]} 2. Nf3 {[%clk 0:03:00]}  d6 {[%clk 0:02:59]} 3. d4 {[%clk 0:02:59]}  cxd4 {[%clk 0:03:00]} 4. Nxd4 {[%clk 0:02:59]}  Nf6 {[%clk 0:03:01]} 5. Nc3 {[%clk 0:02:59]}  a6 {[%clk 0:03:01]} 6. Bc4 {[%clk 0:02:57]}  e6 {[%clk 0:03:01]} 7. Be3 {[%clk 0:02:57]}  b5 {[%clk 0:03:00]} 8. Bb3 {[%clk 0:02:57]}  Be7 {[%clk 0:02:59]} 9. a3 {[%clk 0:02:55]}  O-O {[%clk 0:02:53]} 10. f3 {[%clk 0:02:55]}  Bb7 {[%clk 0:02:46]} 11. Qe2 {[%clk 0:02:54]}  Nc6 {[%clk 0:02:31]} 12. O-O-O {[%clk 0:02:51]}  Nd7 {[%clk 0:02:25]} 13. Kb1 {[%clk 0:02:44]}  Qc7 {[%clk 0:02:22]} 14. h4 {[%clk 0:02:38]}  Nc5 {[%clk 0:02:22]} 15. Ba2 {[%clk 0:02:31]}  Rab8 {[%clk 0:02:13]} 16. Nf5 {[%clk 0:02:04]}  b4 {[%clk 0:01:57]} 17. Nd5 {[%clk 0:01:59]}  exd5 {[%clk 0:01:53]} 18. exd5 {[%clk 0:01:54]}  Ne5 {[%clk 0:00:57]} 19. Bxc5 {[%clk 0:01:45]}  Qxc5 {[%clk 0:00:56]} 20. Nxe7+ {[%clk 0:01:37]}  Kh8 {[%clk 0:00:56]} 21. axb4 {[%clk 0:01:33]}  Qxb4 {[%clk 0:00:56]} 22. Qd2 {[%clk 0:01:26]}  Qb5 {[%clk 0:00:45]} 23. Qd4 {[%clk 0:01:23]}  Qd7 {[%clk 0:00:37]} 24. f4 {[%clk 0:01:12]}  Ng4 {[%clk 0:00:21]} 25. Rhe1 {[%clk 0:01:07]}  Rfe8 {[%clk 0:00:14]} 26. Nc6 {[%clk 0:01:06]}  Bxc6 {[%clk 0:00:14]} 27. dxc6 {[%clk 0:01:04]}  Qxc6 {[%clk 0:00:15]} 28. Bxf7 {[%clk 0:00:58]}  Rxe1 {[%clk 0:00:06]} 29. Rxe1 {[%clk 0:00:58]}  Nf6 {[%clk 0:00:02]} 30. Bb3 {[%clk 0:00:48]}  a5 {[%clk 0:00:02]} 31. g3 {[%clk 0:00:43]}  h5 {[%clk 0:00:01]} 32. Qc4 {[%clk 0:00:36]}  Qxc4 {[%clk 0:00:01]} 33. Bxc4 {[%clk 0:00:35]}  d5 {[%clk 0:00:02]} 34. Bd3 {[%clk 0:00:35]}  Rb4 {[%clk 0:00:02]} 35. Re5 {[%clk 0:00:34]}  Kg8 {[%clk 0:00:01]} 36. c3 {[%clk 0:00:34]}  Rb6 {[%clk 0:00:01]} 37. Kc2 {[%clk 0:00:34]}  Kf7 {[%clk 0:00:02]} 38. b3 {[%clk 0:00:29]}  Rd6 {[%clk 0:00:02]} 39. c4 {[%clk 0:00:29]}  dxc4 {[%clk 0:00:01]} 40. Bxc4+ {[%clk 0:00:29]}  Kf8 {[%clk 0:00:02]} 41. Rxa5 {[%clk 0:00:28]}  Ne4 {[%clk 0:00:02]} 42. Rf5+ {[%clk 0:00:25]}  Nf6 {[%clk 0:00:01]} 43. b4 {[%clk 0:00:23]}  g6 {[%clk 0:00:02]} 44. Re5 {[%clk 0:00:22]}  Nd7 {[%clk 0:00:01]} 45. Re6 {[%clk 0:00:22]}  Rd4 {[%clk 0:00:01]} 46. Kc3 {[%clk 0:00:21]}  Rd1 {[%clk 0:00:02]} 47. Rxg6 {[%clk 0:00:21]}  Rc1+ {[%clk 0:00:02]} 48. Kb3 {[%clk 0:00:21]}  Ke7 {[%clk 0:00:01]} 49. Re6+ {[%clk 0:00:19]}  Kd8 {[%clk 0:00:02]} 50. f5 {[%clk 0:00:17]}  Rg1 {[%clk 0:00:02]} 51. Re3 {[%clk 0:00:16]}  Nf6 {[%clk 0:00:01]} 52. Be6 {[%clk 0:00:16]}  Ng4 {[%clk 0:00:01]} 53. Rc3 {[%clk 0:00:16]}  Ke7 {[%clk 0:00:02]} 54. b5 {[%clk 0:00:16]}  Ne5 {[%clk 0:00:01]} 55. Kb4 {[%clk 0:00:13]}  Rb1+ {[%clk 0:00:01]} 56. Kc5 {[%clk 0:00:13]}  Ng4 {[%clk 0:00:01]} 57. b6 {[%clk 0:00:12]}  Nf6 {[%clk 0:00:02]} 58. Kc6 {[%clk 0:00:12]}  Ne4 {[%clk 0:00:03]} 59. Rc4 {[%clk 0:00:11]}  Nd6 {[%clk 0:00:02]} 60. Rc5 {[%clk 0:00:10]}  Ne4 {[%clk 0:00:02]} 61. Rc2 {[%clk 0:00:09]}  Nd6 {[%clk 0:00:03]} 62. Rc3 {[%clk 0:00:07]}  Ne4 {[%clk 0:00:03]} 63. Re3 {[%clk 0:00:07]}  Nf6 {[%clk 0:00:01]} 64. Ba2+ {[%clk 0:00:06]} 1-0


[Site "https://www.chess.com"]